[Event "European Womens-ch 2025"]
[Site "Rhodes"]
[Date "2025.04.08"]
[Round "8.55"]
[White "Acarbay, Algi"]
[Black "Golsta, Madara"]
[Result "1/2-1/2"]
[Annotator "NA RC"]
[ECO "A48"]
[WhiteElo "2052"]
[BlackElo "1979"]
[PlyCount "66"]
[EventDate "2025.03.29"]
[EventType "swiss"]
[EventCountry "GRE"]
[SourceTitle "playchess.com"]
[Source "ChessBase"]
[SourceQuality "1"]
[TimeControl "40/5400+30:1800+30"]

1. d4 c5 2. c3 {[%emt 1:31:30]} Nf6 {[%emt 1:31:30]} 3. Nf3 {[%emt 0:00:30]} g6 {[%emt 0:00:30]} 4. Bf4 {[%emt 0:00:30]} Qb6 {[%emt 0:00:30]} 5. Qb3 {[%emt 0:00:30]} cxd4 {[%emt 0:00:30]} 6. Qxb6 {[%emt 0:00:30]} axb6 {[%emt 0:00:30]} 7. Nxd4 {[%emt 0:00:30]} d6 {[%emt 0:00:30]} 8. Nb5 {[%emt 0:00:30]} Na6 {[%emt 0:00:30]} 9. Nd2 {[%emt 0:00:30]} Bf5 {[%emt 0:00:30]} 10. h3 {[%emt 0:00:30]} h5 {[%emt 0:00:30]} 11. e3 {[%emt 0:00:30]} Bg7 {[%emt 0:00:30]} 12. Be2 {[%emt 0:00:30]} O-O {[%emt 0:00:30]} 13. O-O {[%emt 0:00:30]} Nc5 {[%emt 0:00:30]} 14. Bg5 {[%emt 0:00:30]} Rfc8 {[%emt 0:00:30]} 15. Nc4 {[%emt 0:00:30]} Ra6 {[%emt 0:00:30]} 16. Nd4 {[%emt 0:00:30]} Bd3 {[%emt 0:00:30]} 17. Rfd1 {[%emt 0:00:30]} Bxe2 {[%emt 0:00:30]} 18. Nxe2 {[%emt 0:00:30]} Na4 {[%emt 0:00:30]} 19. b3 {[%emt 0:00:30]} d5 {[%emt 0:00:30]} 20. Bxf6 {[%emt 0:00:30]} Bxf6 {[%emt 0:00:30]} 21. Rxd5 {[%emt 0:00:30]} Nxc3 {[%emt 0:00:30]} 22. Nxc3 {[%emt 0:00:30]} Bxc3 {[%emt 0:00:30]} 23. Rc1 {[%emt 0:00:30]} Bf6 {[%emt 0:00:30]} 24. a4 {[%emt 0:00:30]} Ra5 {[%emt 0:00:30]} 25. Rcd1 {[%emt 0:00:30]} Rxd5 {[%emt 0:00:30]} 26. Rxd5 {[%emt 0:00:30]} h4 {[%emt 0:00:30]} 27. Rd7 {[%emt 0:00:30]} Rc5 {[%emt 0:00:30]} 28. Kf1 {[%emt 0:00:30]} b5 {[%emt 0:00:30]} 29. Nb6 {[%emt 0:00:30]} Rc3 {[%emt 0:00:30]} 30. Rxb7 {[%emt 0:00:30]} Rxb3 {[%emt 0:00:30]} 31. axb5 {[%emt 0:00:30]} Rxb5 {[%emt 0:00:30]} 32. Rb8+ {[%emt 0:00:30]} Kg7 {[%emt 0:00:30]} 33. Nd7 {[%emt 0:00:30]} Rxb8 {[%emt 0:00:30]} 1/2-1/2

[Event "European Womens-ch 2025"]
[Site "Rhodes"]
[Date "2025.04.08"]
[Round "8.56"]
[White "Chasouraki, Chrysi"]
[Black "Bochnickova, Andrea"]
[Result "0-1"]
[Annotator "NA RC"]
[ECO "B30"]
[WhiteElo "1843"]
[BlackElo "2051"]
[PlyCount "104"]
[EventDate "2025.03.29"]
[EventType "swiss"]
[EventCountry "GRE"]
[SourceTitle "playchess.com"]
[Source "ChessBase"]
[SourceQuality "1"]
[TimeControl "40/5400+30:1800+30"]

1. e4 {[%emt 0:00:40]} c5 {[%emt 0:00:06]} 2. Nf3 {[%emt 0:00:04]} Nc6 {[%emt 0:00:15]} 3. Bb5 {[%emt 0:00:08]} e6 {[%emt 0:00:16]} 4. O-O {[%emt 0:00:27]} Nge7 {[%emt 0:00:05]} 5. d4 {[%emt 0:00:04]} cxd4 {[%emt 0:02:55]} 6. Nxd4 {[%emt 0:00:12]} Qb6 {[%emt 0:00:49]} 7. Nxc6 {[%emt 0:02:23]} Qxb5 {[%emt 0:08:23]} 8. Nd4 {[%emt 0:04:49]} Qb6 {[%emt 0:00:21]} 9. c4 {[%emt 0:08:25]} Ng6 {[%emt 0:04:40]} 10. Nc3 {[%emt 0:03:23]} Be7 {[%emt 0:00:40]} 11. b3 {[%emt 0:04:30]} O-O {[%emt 0:00:36]} 12. Be3 {[%emt 0:01:11]} Qc7 {[%emt 0:01:42]} 13. f4 {[%emt 0:10:35]} d6 {[%emt 0:08:55]} 14. Qh5 {[%emt 0:18:00]} Bf6 {[%emt 0:07:05]} 15. Rad1 {[%emt 0:09:53]} a6 {[%emt 0:00:30]} 16. Nce2 {[%emt 0:06:32]} Bd7 {[%emt 0:05:55]} 17. Rf3 {[%emt 0:03:32]} Rfe8 {[%emt 0:01:37]} 18. Rh3 {[%emt 0:05:11]} Nf8 {[%emt 0:01:26]} 19. Nf3 {[%emt 0:06:15]} g6 {[%emt 0:07:18]} 20. Qg4 {[%emt 0:04:19]} Bg7 {[%emt 0:02:32]} 21. Qh4 {[%emt 0:07:10]} e5 {[%emt 0:04:35]} 22. Rg3 {[%emt 0:01:29]} exf4 {[%emt 0:04:07]} 23. Qxf4 {[%emt 0:00:29]} Bc6 {[%emt 0:02:26]} 24. Qxd6 {[%emt 0:01:10]} Qa5 {[%emt 0:00:43]} 25. Qd2 {[%emt 0:01:08]} Qxd2 {[%emt 0:03:16]} 26. Rxd2 {[%emt 0:00:26]} Bxe4 {[%emt 0:00:45]} 27. Bb6 {[%emt 0:01:01]} Bh6 {[%emt 0:04:19]} 28. Rb2 {[%emt 0:00:31]} Re6 {[%emt 0:04:01]} 29. Ba5 {[%emt 0:00:30]} Be3+ {[%emt 0:01:13]} 30. Kh1 {[%emt 0:00:20]} Bf2 {[%emt 0:02:00]} 31. Nfd4 {[%emt 0:00:40]} Re5 {[%emt 0:02:28]} 32. Rg4 {[%emt 0:00:29]} f5 {[%emt 0:02:34]} 33. Bc7 {[%emt 0:00:29]} Re7 {[%emt 0:00:41]} 34. Bd6 {[%emt 0:00:30]} Rd7 {[%emt 0:00:34]} 35. Rxe4 {[%emt 0:00:31]} fxe4 {[%emt 0:00:13]} 36. c5 {[%emt 0:00:31]} Re8 {[%emt 0:00:19]} 37. g3 {[%emt 0:00:29]} Ne6 {[%emt 0:00:32]} 38. Nxe6 {[%emt 0:00:19]} Rxe6 {[%emt 0:02:04]} 39. Nf4 {[%emt 0:00:17]} Bd4 {[%emt 0:00:15]} 40. Rd2 {[%emt 0:00:00]} Be3 {[%emt 0:00:00]} 41. Re2 {[%emt 0:03:00]} Bxf4 {[%emt 0:05:54]} 42. gxf4 {[%emt 0:00:02]} Kf7 {[%emt 0:01:53]} 43. Rd2 {[%emt 0:02:46]} e3 {[%emt 0:04:07]} 44. Re2 {[%emt 0:04:37]} b6 {[%emt 0:01:28]} 45. b4 {[%emt 0:01:00]} Re4 {[%emt 0:01:46]} 46. a3 {[%emt 0:01:10]} Ke6 {[%emt 0:01:18]} 47. Be5 {[%emt 0:09:40]} bxc5 {[%emt 0:01:30]} 48. bxc5 {[%emt 0:00:22]} Rd2 {[%emt 0:00:36]} 49. Re1 {[%emt 0:00:30]} Rc4 {[%emt 0:00:37]} 50. Bd6 {[%emt 0:00:37]} Kd5 {[%emt 0:00:21]} 51. Bf8 {[%emt 0:02:39]} Ke4 {[%emt 0:00:15]} 52. Bh6 {[%emt 0:00:25]} Rcc2 {[%emt 0:00:41]} 0-1

[Event "European Womens-ch 2025"]
[Site "Rhodes"]
[Date "2025.04.08"]
[Round "8.57"]
[White "Mihaljevic, Eva"]
[Black "Golsta, Ramona"]
[Result "1/2-1/2"]
[Annotator "NA RC"]
[ECO "B33"]
[WhiteElo "2039"]
[BlackElo "1943"]
[PlyCount "85"]
[EventDate "2025.03.29"]
[EventType "swiss"]
[EventCountry "GRE"]
[SourceTitle "playchess.com"]
[Source "ChessBase"]
[SourceQuality "1"]
[TimeControl "40/5400+30:1800+30"]

1. e4 {[%emt 0:00:03]} c5 {[%emt 0:00:06]} 2. Nf3 {[%emt 0:00:05]} Nc6 {[%emt 0:00:04]} 3. d4 {[%emt 0:00:06]} cxd4 {[%emt 0:00:03]} 4. Nxd4 {[%emt 0:00:06]} Nf6 {[%emt 0:00:06]} 5. Nc3 {[%emt 0:00:07]} e5 {[%emt 0:00:05]} 6. Ndb5 {[%emt 0:00:14]} d6 {[%emt 0:00:11]} 7. Bg5 {[%emt 0:00:12]} a6 {[%emt 0:00:17]} 8. Na3 {[%emt 0:00:08]} b5 {[%emt 0:00:07]} 9. Nd5 {[%emt 0:00:31]} Be7 {[%emt 0:00:06]} 10. Bxf6 {[%emt 0:00:56]} Bxf6 {[%emt 0:00:05]} 11. c4 {[%emt 0:00:11]} b4 {[%emt 0:00:04]} 12. Nc2 {[%emt 0:00:16]} a5 {[%emt 0:00:04]} 13. g3 {[%emt 0:00:19]} O-O {[%emt 0:00:27]} 14. Bg2 {[%emt 0:00:13]} Bg5 {[%emt 0:00:38]} 15. O-O {[%emt 0:00:55]} g6 {[%emt 0:01:23]} 16. Qd3 {[%emt 0:01:28]} Be6 {[%emt 0:00:34]} 17. Rad1 {[%emt 0:05:07]} h5 {[%emt 0:04:42]} 18. f4 {[%emt 0:05:22]} exf4 {[%emt 0:04:12]} 19. gxf4 {[%emt 0:02:03]} Bh6 {[%emt 0:01:21]} 20. b3 {[%emt 0:18:02]} a4 {[%emt 0:13:36]} 21. Kh1 {[%emt 0:08:18]} axb3 {[%emt 0:03:01]} 22. axb3 {[%emt 0:00:48]} Rb8 {[%emt 0:05:21]} 23. f5 {[%emt 0:12:55]} Ne5 {[%emt 0:06:01]} 24. Qg3 {[%emt 0:06:05]} Bxd5 {[%emt 0:09:02]} 25. Rxd5 {[%emt 0:01:13]} h4 {[%emt 0:19:32]} 26. Qf2 {[%emt 0:00:44]} Bg5 {[%emt 0:10:46]} 27. c5 {[%emt 0:05:36]} Qc7 {[%emt 0:06:27]} 28. cxd6 {[%emt 0:08:19]} Qc3 {[%emt 0:00:40]} 29. Qd4 {[%emt 0:06:46]} f6 {[%emt 0:07:33]} 30. Qxc3 {[%emt 0:06:19]} bxc3 {[%emt 0:00:06]} 31. b4 {[%emt 0:02:09]} Rfd8 {[%emt 0:01:57]} 32. Bh3 {[%emt 0:02:58]} Rb6 {[%emt 0:00:32]} 33. fxg6 {[%emt 0:01:14]} Rbxd6 {[%emt 0:01:16]} 34. Be6+ {[%emt 0:01:16]} Kg7 {[%emt 0:00:47]} 35. Nd4 {[%emt 0:00:59]} Kxg6 {[%emt 0:02:50]} 36. b5 {[%emt 0:03:37]} Rxd5 {[%emt 0:00:45]} 37. exd5 {[%emt 0:00:08]} Nc4 {[%emt 0:01:21]} 38. Nc2 {[%emt 0:01:56]} Nb6 {[%emt 0:01:39]} 39. Rd1 {[%emt 0:00:55]} Bd2 {[%emt 0:00:28]} 40. Rg1+ {[%emt 0:00:00]} Bg5 {[%emt 0:00:00]} 41. Rd1 {[%emt 0:32:21]} Bd2 {[%emt 0:01:55]} 42. Rg1+ {[%emt 0:00:00]} Bg5 {[%emt 0:06:21]} 43. Rd1 {[%emt 0:00:00]} 1/2-1/2

[Event "European Womens-ch 2025"]
[Site "Rhodes"]
[Date "2025.04.08"]
[Round "8.58"]
[White "Bhatia, Kanishka"]
[Black "Kosma, Maria"]
[Result "1-0"]
[Annotator "NA RC"]
[ECO "E34"]
[WhiteElo "2012"]
[BlackElo "1826"]
[PlyCount "57"]
[EventDate "2025.03.29"]
[EventType "swiss"]
[EventCountry "GRE"]
[SourceTitle "playchess.com"]
[Source "ChessBase"]
[SourceQuality "1"]
[TimeControl "40/5400+30:1800+30"]

1. d4 {[%emt 0:00:04]} Nf6 {[%emt 0:00:16]} 2. c4 {[%emt 0:00:10]} e6 {[%emt 0:00:05]} 3. Nc3 {[%emt 0:00:10]} Bb4 {[%emt 0:00:15]} 4. Qc2 {[%emt 0:00:11]} d5 {[%emt 0:00:47]} 5. e3 {[%emt 0:00:39]} O-O {[%emt 0:01:25]} 6. Bd3 {[%emt 0:00:28]} dxc4 {[%emt 0:02:49]} 7. Bxc4 {[%emt 0:00:39]} b6 {[%emt 0:00:13]} 8. Nge2 {[%emt 0:00:37]} Bb7 {[%emt 0:00:27]} 9. O-O {[%emt 0:00:12]} Nbd7 {[%emt 0:08:24]} 10. a3 {[%emt 0:01:32]} Bxc3 {[%emt 0:03:59]} 11. Nxc3 {[%emt 0:00:29]} Qe7 {[%emt 0:05:04]} 12. Bd2 {[%emt 0:12:22]} c5 {[%emt 0:05:40]} 13. Rfd1 {[%emt 0:03:24]} Rac8 {[%emt 0:01:14]} 14. Bf1 {[%emt 0:01:12]} e5 {[%emt 0:09:17]} 15. dxe5 {[%emt 0:02:47]} Nxe5 {[%emt 0:01:18]} 16. Be1 {[%emt 0:06:58]} Qe6 {[%emt 0:05:09]} 17. h3 {[%emt 0:03:48]} Qxh3 {[%emt 0:07:28]} 18. f3 {[%emt 0:04:42]} Qh5 {[%emt 0:02:30]} 19. e4 {[%emt 0:00:50]} Qg5 {[%emt 0:02:00]} 20. Qf2 {[%emt 0:01:01]} Qg6 {[%emt 0:04:50]} 21. Nb5 {[%emt 0:03:06]} Rcd8 {[%emt 0:01:39]} 22. Nd6 {[%emt 0:01:51]} Nfg4 {[%emt 0:09:29]} 23. Nf5 {[%emt 0:04:53]} Qxf5 {[%emt 0:00:12]} 24. exf5 {[%emt 0:00:07]} Nxf2 {[%emt 0:00:05]} 25. Kxf2 {[%emt 0:00:11]} Bc8 {[%emt 0:00:54]} 26. Bc3 {[%emt 0:01:21]} f6 {[%emt 0:01:14]} 27. g4 {[%emt 0:01:58]} Bb7 {[%emt 0:00:38]} 28. Be2 {[%emt 0:02:48]} Bd5 {[%emt 0:00:45]} 29. Bxe5 {[%emt 0:00:52]} 1-0

[Event "European Womens-ch 2025"]
[Site "Rhodes"]
[Date "2025.04.08"]
[Round "8.59"]
[White "Mitraka, Chrysoula-Paraskevi"]
[Black "Ciolacu, Alessia-Mihaela"]
[Result "0-1"]
[Annotator "RC"]
[ECO "E32"]
[WhiteElo "1820"]
[BlackElo "2136"]
[PlyCount "99"]
[EventDate "2025.03.29"]
[EventType "swiss"]
[EventCountry "GRE"]
[SourceTitle "playchess.com"]
[Source "ChessBase"]
[SourceQuality "1"]
[TimeControl "40/5400+30:1800+30"]

1. d4 {[%emt 0:00:02]} Nf6 {[%emt 1:31:00]} 2. c4 {[%emt 0:00:23]} e6 {[%emt 0:00:00]} 3. Nc3 {[%emt 0:00:15]} Bb4 {[%emt 0:00:00]} 4. Qc2 {[%emt 0:00:35]} b6 {[%emt 0:00:00]} 5. a3 {[%emt 0:02:14]} Bxc3+ {[%emt 0:00:00]} 6. Qxc3 {[%emt 0:05:04]} Bb7 {[%emt 0:00:00]} 7. Bg5 {[%emt 0:01:49]} h6 {[%emt 0:00:00]} 8. Bh4 {[%emt 0:01:24]} g5 {[%emt 0:00:00]} 9. Bg3 {[%emt 0:01:34]} Ne4 {[%emt 0:00:00]} 10. Qc2 {[%emt 0:01:50]} d6 {[%emt 0:00:00]} 11. e3 {[%emt 0:03:46]} Nd7 {[%emt 0:00:00]} 12. f3 {[%emt 0:05:47]} Nxg3 {[%emt 0:00:00]} 13. hxg3 {[%emt 0:00:13]} Qf6 {[%emt 0:00:00]} 14. Bd3 {[%emt 0:05:19]} c5 {[%emt 0:00:00]} 15. Qf2 {[%emt 0:15:20]} Rc8 {[%emt 0:00:00]} 16. Ne2 {[%emt 0:09:16]} Ba6 {[%emt 0:00:00]} 17. Rc1 {[%emt 0:08:33]} d5 {[%emt 0:00:00]} 18. b3 {[%emt 0:05:47]} Qe7 {[%emt 0:00:00]} 19. O-O {[%emt 0:15:18]} Nf6 {[%emt 0:00:00]} 20. Rfd1 {[%emt 0:04:24]} dxc4 {[%emt 0:00:00]} 21. bxc4 {[%emt 0:00:27]} cxd4 {[%emt 0:00:00]} 22. exd4 {[%emt 0:00:41]} O-O {[%emt 0:00:00]} 23. g4 {[%emt 0:02:39]} Rc7 {[%emt 0:00:00]} 24. Rc3 {[%emt 0:01:24]} Rfc8 {[%emt 0:00:00]} 25. Rdc1 {[%emt 0:00:12]} Qd7 {[%emt 0:04:25]} 26. Qe3 {[%emt 0:03:31]} Qd6 {[%emt 0:02:38]} 27. Kf2 {[%emt 0:02:28]} Kg7 28. Ng3 {[%emt 0:04:15]} Nd5 {[%emt 0:04:01]} 29. Qe4 {[%emt 0:00:00]} Nxc3 {[%emt 0:00:30]} 30. Qh7+ {[%emt 0:00:22]} Kf8 {[%emt 0:00:09]} 31. Qxh6+ {[%emt 0:00:30]} Ke7 {[%emt 0:00:04]} 32. Qxg5+ {[%emt 0:00:33]} Kd7 {[%emt 0:00:17]} 33. Nh5 {[%emt 0:00:30]} Qxd4+ {[%emt 0:00:21]} 34. Kg3 {[%emt 0:00:24]} Qxd3 {[%emt 0:00:24]} 35. Nf6+ {[%emt 0:00:30]} Kc6 {[%emt 0:00:30]} 36. Re1 {[%emt 0:00:30]} Bxc4 {[%emt 0:00:30]} 37. Re3 {[%emt 0:00:30]} Ne2+ {[%emt 0:00:30]} 38. Kh2 {[%emt 0:00:30]} Qd1 {[%emt 0:00:30]} 39. Rxe2 {[%emt 0:00:30]} Qxe2 {[%emt 0:00:30]} 40. a4 {[%emt 0:00:00]} Rd8 {[%emt 0:00:00]} 41. Ne4 {[%emt 0:01:14]} Rh8+ {[%emt 0:01:28]} 42. Kg3 {[%emt 0:00:34]} Qe1+ {[%emt 0:00:26]} 43. Nf2 {[%emt 0:00:17]} Qg1 {[%emt 0:04:40]} 44. Nh3 {[%emt 0:02:13]} Qd4 {[%emt 0:04:03]} 45. Nf4 {[%emt 0:01:02]} Rd7 {[%emt 0:01:42]} 46. a5 {[%emt 0:00:57]} Qd2 {[%emt 0:00:17]} 47. Nh3 {[%emt 0:00:27]} Rxh3+ {[%emt 0:00:06]} 48. Kxh3 {[%emt 0:00:25]} Qxg5 {[%emt 0:00:12]} 49. a6 {[%emt 0:00:20]} Rd1 {[%emt 0:00:53]} 50. f4 {[%emt 0:00:50]} 0-1

[Event "European Womens-ch 2025"]
[Site "Rhodes"]
[Date "2025.04.08"]
[Round "8.60"]
[White "Nahapetyan, Ani"]
[Black "Zvereva, Marija"]
[Result "1-0"]
[Annotator "NA RC"]
[ECO "B32"]
[WhiteElo "1887"]
[BlackElo "2033"]
[PlyCount "81"]
[EventDate "2025.03.29"]
[EventType "swiss"]
[EventCountry "GRE"]
[SourceTitle "playchess.com"]
[Source "ChessBase"]
[SourceQuality "1"]
[TimeControl "40/5400+30:1800+30"]

1. e4 {[%emt 0:00:03]} c5 {[%emt 0:05:13]} 2. Nf3 {[%emt 0:00:06]} Nc6 {[%emt 0:00:05]} 3. d4 {[%emt 0:00:07]} cxd4 {[%emt 0:00:05]} 4. Nxd4 {[%emt 0:00:05]} e5 {[%emt 0:00:08]} 5. Nb5 {[%emt 0:00:21]} d6 {[%emt 0:00:17]} 6. c4 {[%emt 0:00:57]} Be7 {[%emt 0:05:23]} 7. Be2 {[%emt 0:01:15]} Nf6 {[%emt 0:01:39]} 8. N5c3 {[%emt 0:02:55]} Be6 {[%emt 0:01:46]} 9. Be3 {[%emt 0:01:24]} Rc8 {[%emt 0:01:21]} 10. O-O {[%emt 0:03:25]} O-O {[%emt 0:00:14]} 11. Qd2 {[%emt 0:02:17]} h6 {[%emt 0:06:53]} 12. Na3 {[%emt 0:03:17]} Na5 {[%emt 0:27:56]} 13. Nd5 {[%emt 0:10:01]} Bxd5 {[%emt 0:10:02]} 14. exd5 {[%emt 0:00:15]} b6 {[%emt 0:00:32]} 15. b4 {[%emt 0:04:16]} Nb7 {[%emt 0:00:03]} 16. Nb5 {[%emt 0:02:23]} Ra8 {[%emt 0:36:53]} 17. f4 {[%emt 0:08:15]} a6 {[%emt 0:00:00]} 18. Nc3 {[%emt 0:00:35]} Nd7 {[%emt 0:00:00]} 19. f5 {[%emt 0:10:01]} Bg5 {[%emt 0:00:00]} 20. Ne4 {[%emt 0:02:10]} Bxe3+ {[%emt 0:00:00]} 21. Qxe3 {[%emt 0:00:05]} f6 {[%emt 0:00:00]} 22. Rac1 {[%emt 0:06:48]} a5 {[%emt 0:00:00]} 23. a3 {[%emt 0:00:40]} axb4 {[%emt 0:00:00]} 24. axb4 {[%emt 0:00:05]} Ra2 {[%emt 0:00:00]} 25. Rf3 {[%emt 0:04:39]} Kf7 {[%emt 0:00:00]} 26. Rg3 {[%emt 0:12:05]} Rg8 {[%emt 0:00:00]} 27. Bh5+ {[%emt 0:03:18]} Ke7 {[%emt 0:00:00]} 28. Rg4 {[%emt 0:04:46]} Qa8 {[%emt 0:00:00]} 29. Rg3 {[%emt 0:01:32]} Qa7 {[%emt 0:00:00]} 30. Nc3 {[%emt 0:03:54]} Ra1 {[%emt 0:01:24]} 31. Nb5 {[%emt 0:03:29]} Qa4 {[%emt 0:00:46]} 32. Re1 {[%emt 0:04:02]} Qa2 {[%emt 0:02:43]} 33. Nd4 {[%emt 0:04:51]} g5 {[%emt 0:02:15]} 34. fxg6 {[%emt 0:00:51]} Rxe1+ {[%emt 0:00:12]} 35. Qxe1 {[%emt 0:00:03]} Qxc4 {[%emt 0:00:17]} 36. Nf5+ {[%emt 0:01:51]} Kd8 {[%emt 0:00:06]} 37. Rc3 {[%emt 0:00:31]} Qf4 {[%emt 0:00:39]} 38. Rf3 {[%emt 0:01:06]} Qg5 {[%emt 0:00:39]} 39. g4 {[%emt 0:00:04]} e4 {[%emt 0:00:24]} 40. h4 {[%emt 0:00:00]} Ne5 {[%emt 0:00:00]} 41. Rf1 {[%emt 0:01:31]} 1-0

[Event "European Womens-ch 2025"]
[Site "Rhodes"]
[Date "2025.04.08"]
[Round "8.61"]
[White "Korinioti, Myrto"]
[Black "Valkova, Angelika"]
[Result "0-1"]
[Annotator "NA RC"]
[ECO "C45"]
[WhiteElo "1667"]
[BlackElo "2001"]
[PlyCount "74"]
[EventDate "2025.03.29"]
[EventType "swiss"]
[EventCountry "GRE"]
[SourceTitle "playchess.com"]
[Source "ChessBase"]
[SourceQuality "1"]
[TimeControl "40/5400+30:1800+30"]

1. e4 {[%emt 0:00:16]} e5 {[%emt 0:00:05]} 2. Nf3 {[%emt 0:00:25]} Nc6 {[%emt 0:00:05]} 3. d4 {[%emt 0:00:08]} exd4 {[%emt 0:00:06]} 4. Nxd4 {[%emt 0:00:06]} Bc5 {[%emt 0:00:06]} 5. Nb3 {[%emt 0:00:17]} Bb6 {[%emt 0:00:05]} 6. Nc3 {[%emt 0:00:25]} Qf6 {[%emt 0:00:06]} 7. Qe2 {[%emt 0:02:31]} Nge7 {[%emt 0:00:08]} 8. Be3 {[%emt 0:02:31]} d6 {[%emt 0:00:22]} 9. O-O-O {[%emt 0:00:34]} Bd7 {[%emt 0:02:09]} 10. Nd5 {[%emt 0:10:15]} Nxd5 {[%emt 0:04:12]} 11. exd5 {[%emt 0:00:09]} Ne5 {[%emt 0:04:02]} 12. h3 {[%emt 0:09:34]} O-O-O {[%emt 0:08:35]} 13. Bxb6 {[%emt 0:14:33]} axb6 {[%emt 0:00:16]} 14. Nd4 {[%emt 0:01:27]} Rde8 {[%emt 0:01:55]} 15. Qd2 {[%emt 0:01:44]} g5 {[%emt 0:02:01]} 16. Bb5 {[%emt 0:09:52]} Bxb5 {[%emt 0:28:29]} 17. Nxb5 {[%emt 0:00:21]} Qf4 {[%emt 0:01:45]} 18. Qxf4 {[%emt 0:03:21]} gxf4 {[%emt 0:00:25]} 19. Rd4 {[%emt 0:03:34]} Rhg8 {[%emt 0:03:30]} 20. Rxf4 {[%emt 0:13:02]} Rxg2 {[%emt 0:00:13]} 21. Rh4 {[%emt 0:02:51]} Rxf2 {[%emt 0:05:47]} 22. Rxh7 {[%emt 0:00:23]} Rg8 {[%emt 0:02:28]} 23. h4 {[%emt 0:03:40]} Rgg2 {[%emt 0:01:50]} 24. Nd4 {[%emt 0:07:34]} Rf4 {[%emt 0:10:45]} 25. Nb5 {[%emt 0:03:13]} Nc4 {[%emt 0:08:07]} 26. Re1 {[%emt 0:02:43]} Re2 {[%emt 0:06:57]} 27. Rd1 {[%emt 0:05:13]} Ne3 {[%emt 0:01:44]} 28. Nd4 {[%emt 0:00:32]} Ref2 {[%emt 0:01:10]} 29. Rd3 {[%emt 0:01:04]} Nxd5 {[%emt 0:03:06]} 30. h5 {[%emt 0:00:36]} Rh2 {[%emt 0:00:22]} 31. h6 {[%emt 0:01:17]} Nb4 {[%emt 0:02:14]} 32. Rd1 {[%emt 0:00:56]} Nxa2+ {[%emt 0:00:09]} 33. Kb1 {[%emt 0:00:08]} Nb4 {[%emt 0:00:08]} 34. Rh8+ {[%emt 0:00:15]} Kd7 {[%emt 0:00:04]} 35. h7 {[%emt 0:00:57]} Rxd4 {[%emt 0:00:19]} 36. Rd8+ {[%emt 0:01:00]} Kxd8 {[%emt 0:00:09]} 37. h8=Q+ {[%emt 0:00:06]} Rxh8 {[%emt 0:00:05]} 0-1

[Event "European Womens-ch 2025"]
[Site "Rhodes"]
[Date "2025.04.08"]
[Round "8.62"]
[White "Kiousi, Panagiota"]
[Black "Alexandri, Vasiliki"]
[Result "0-1"]
[Annotator "NA RC"]
[ECO "B18"]
[WhiteElo "1998"]
[BlackElo "1927"]
[PlyCount "74"]
[EventDate "2025.03.29"]
[EventType "swiss"]
[EventCountry "GRE"]
[SourceTitle "playchess.com"]
[Source "ChessBase"]
[SourceQuality "1"]
[TimeControl "40/5400+30:1800+30"]

1. e4 {[%emt 0:00:03]} c6 {[%emt 0:00:05]} 2. d4 {[%emt 0:00:05]} d5 {[%emt 0:00:06]} 3. Nc3 {[%emt 0:00:04]} dxe4 {[%emt 0:01:28]} 4. Nxe4 {[%emt 0:00:05]} Bf5 {[%emt 0:06:28]} 5. Ng3 {[%emt 0:00:08]} Bg6 {[%emt 0:00:08]} 6. h4 {[%emt 0:00:19]} h5 {[%emt 0:00:18]} 7. Nh3 {[%emt 0:04:44]} e5 {[%emt 0:04:08]} 8. Qe2 {[%emt 0:18:35]} Qxd4 {[%emt 0:08:22]} 9. c3 {[%emt 0:00:11]} Qd6 {[%emt 0:13:35]} 10. Bd2 {[%emt 0:04:25]} Nd7 {[%emt 0:12:30]} 11. O-O-O {[%emt 0:15:59]} Qe6 {[%emt 0:05:18]} 12. c4 {[%emt 0:01:02]} O-O-O {[%emt 0:02:08]} 13. Ng5 {[%emt 0:02:14]} Qe8 {[%emt 0:04:20]} 14. Ba5 {[%emt 0:08:39]} b6 {[%emt 0:07:15]} 15. Bc3 {[%emt 0:00:07]} Ngf6 {[%emt 0:02:09]} 16. N3e4 {[%emt 0:06:01]} Nc5 {[%emt 0:06:33]} 17. Rxd8+ {[%emt 0:07:08]} Qxd8 {[%emt 0:00:15]} 18. Nxc5 {[%emt 0:02:46]} Bxc5 {[%emt 0:00:08]} 19. g3 {[%emt 0:04:24]} Re8 {[%emt 0:05:48]} 20. Bh3+ {[%emt 0:02:02]} Kb7 {[%emt 0:01:45]} 21. Rd1 {[%emt 0:00:43]} Qc7 {[%emt 0:02:17]} 22. Nf3 {[%emt 0:03:54]} Bd4 {[%emt 0:02:27]} 23. Bd2 {[%emt 0:03:41]} Rd8 {[%emt 0:08:06]} 24. Bg5 {[%emt 0:03:31]} Qd6 {[%emt 0:00:59]} 25. Nxd4 {[%emt 0:03:48]} exd4 {[%emt 0:00:01]} 26. Bf4 {[%emt 0:00:28]} d3 {[%emt 0:01:00]} 27. Qe3 {[%emt 0:04:46]} Qb4 {[%emt 0:01:14]} 28. Kb1 {[%emt 0:00:28]} Qxc4 {[%emt 0:02:59]} 29. Ka1 {[%emt 0:00:47]} Re8 {[%emt 0:00:49]} 30. Be5 {[%emt 0:01:40]} Ng4 {[%emt 0:01:09]} 31. Bxg4 {[%emt 0:00:19]} Qxg4 {[%emt 0:00:27]} 32. f3 {[%emt 0:01:29]} Qe6 {[%emt 0:00:29]} 33. Re1 {[%emt 0:00:50]} Qd5 {[%emt 0:00:19]} 34. Qf4 {[%emt 0:00:56]} d2 {[%emt 0:00:24]} 35. Rd1 {[%emt 0:00:14]} Rxe5 {[%emt 0:00:23]} 36. a3 {[%emt 0:00:50]} Re1 {[%emt 0:00:18]} 37. Qa4 {[%emt 0:00:06]} Qxf3 {[%emt 0:00:22]} 0-1

[Event "European Womens-ch 2025"]
[Site "Rhodes"]
[Date "2025.04.08"]
[Round "8.63"]
[White "Karadas, Hena"]
[Black "Kalyva, Kyriaki"]
[Result "1-0"]
[Annotator "NA RC"]
[ECO "B30"]
[WhiteElo "1931"]
[BlackElo "1885"]
[PlyCount "57"]
[EventDate "2025.03.29"]
[EventType "swiss"]
[EventCountry "GRE"]
[SourceTitle "playchess.com"]
[Source "ChessBase"]
[SourceQuality "1"]
[TimeControl "40/5400+30:1800+30"]

1. e4 {[%emt 0:00:02]} c5 {[%emt 0:00:03]} 2. Nf3 {[%emt 0:00:09]} Nc6 {[%emt 0:00:05]} 3. Bb5 {[%emt 0:00:16]} e6 {[%emt 0:00:06]} 4. O-O {[%emt 0:00:19]} Nge7 {[%emt 0:00:04]} 5. d4 {[%emt 0:00:18]} cxd4 {[%emt 0:00:06]} 6. Nxd4 {[%emt 0:00:05]} Ng6 {[%emt 0:00:47]} 7. Be2 {[%emt 0:05:30]} Be7 {[%emt 0:05:44]} 8. c4 {[%emt 0:01:00]} O-O {[%emt 0:01:01]} 9. Nc3 {[%emt 0:00:48]} a6 {[%emt 0:02:42]} 10. Be3 {[%emt 0:02:56]} d6 {[%emt 0:10:38]} 11. Qd2 {[%emt 0:07:28]} Nxd4 {[%emt 0:13:52]} 12. Qxd4 {[%emt 0:00:59]} Ne5 {[%emt 0:13:00]} 13. Rad1 {[%emt 0:04:17]} Bd7 {[%emt 0:04:38]} 14. c5 {[%emt 0:04:58]} Nc6 {[%emt 0:20:17]} 15. Qd2 {[%emt 0:01:34]} d5 {[%emt 0:01:29]} 16. exd5 {[%emt 0:00:37]} exd5 {[%emt 0:00:04]} 17. Nxd5 {[%emt 0:02:35]} Be6 {[%emt 0:00:43]} 18. Nxe7+ {[%emt 0:02:49]} Qxe7 {[%emt 0:00:05]} 19. Bf4 {[%emt 0:02:30]} Qxc5 {[%emt 0:03:58]} 20. Bd6 {[%emt 0:03:36]} Qa5 {[%emt 0:00:28]} 21. Bxf8 {[%emt 0:01:28]} Qxd2 {[%emt 0:00:05]} 22. Rxd2 {[%emt 0:00:09]} Kxf8 {[%emt 0:00:03]} 23. a3 {[%emt 0:02:05]} Re8 {[%emt 0:01:53]} 24. h3 {[%emt 0:00:54]} Na5 {[%emt 0:00:58]} 25. Bf3 {[%emt 0:03:06]} Nb3 {[%emt 0:00:45]} 26. Rd6 {[%emt 0:01:02]} b5 {[%emt 0:05:12]} 27. Re1 {[%emt 0:03:35]} a5 {[%emt 0:03:00]} 28. Bd5 {[%emt 0:02:51]} Rc8 {[%emt 0:02:13]} 29. Rdxe6 {[%emt 0:02:33]} 1-0